fUST/lending_fUST_20251026
["ID","MTS","AMOUNT","RATE_DAILY","PERIOD"]
[392444610,1761483050529,-151.0,0.0002553,7]
[392444611,1761483050537,-377.71805,0.0002553,7]
[392444612,1761483050546,-377.71805,0.0002553,7]
[392444613,1761483050555,-377.71805,0.0002553,7]
[392444614,1761483050564,-151.0,0.0002553,7]
[392444615,1761483050573,-151.0,0.0002553,7]
[392444616,1761483050583,-377.71805,0.0002553,7]
[392444617,1761483050592,-151.0,0.0002553,7]
[392444618,1761483050601,-151.0,0.0002553,7]
[392444619,1761483050613,-151.0,0.0002553,7]
[392444620,1761483050622,-151.0,0.0002553,7]
[392444621,1761483050631,-151.0,0.0002553,7]
[392444622,1761483050640,-151.0,0.0002553,7]
[392444623,1761483050648,-151.0,0.0002553,7]
[392444624,1761483050657,-156.435988,0.0002553,7]
[392444625,1761483050666,-151.0,0.0002553,7]
[392444626,1761483050675,-183.957146,0.0002553,7]
[392444627,1761483050684,-151.0,0.0002553,7]
[392444628,1761483050694,-151.0,0.0002553,7]
[392444629,1761483050704,-161.558182,0.0002553,7]
[392444630,1761483050713,-151.0,0.0002553,7]
[392444631,1761483050722,-222.135316,0.0002553,7]
[392444632,1761483050731,-327.367854,0.0002553,7]
[392444633,1761483050740,-327.367854,0.0002553,7]
[392444634,1761483050749,-327.367854,0.0002553,7]
[392444635,1761483050759,-327.367864,0.0002553,7]
[392444636,1761483050768,-527.454562,0.0002553,7]
[392444637,1761483050778,-151.0,0.0002553,7]
[392444638,1761483050788,-527.454562,0.0002553,7]
[392444639,1761483050798,-527.454562,0.0002553,7]
[392444640,1761483050807,-527.454558,0.0002553,7]
[392444641,1761483050821,-151.0,0.0002553,2]
[392444642,1761483050831,-151.0,0.0002553,7]
[392444643,1761483050841,-236.268626,0.0002553,2]
[392444644,1761483050850,-151.0,0.0002553,7]
[392444645,1761483050860,-151.0,0.0002553,7]
[392444646,1761483050869,-219.965605,0.0002553,7]
[392444647,1761483050878,-151.0,0.0002553,7]
[392444648,1761483050888,-429.228895,0.0002553,7]
[392444649,1761483050897,-429.228895,0.0002553,7]
[392444650,1761483050906,-429.228895,0.0002553,7]
[392444651,1761483050915,-429.228895,0.0002553,7]
[392444652,1761483050925,-151.0,0.0002553,7]
[392444653,1761483050935,-180.120342,0.0002553,7]
[392444654,1761483050944,-180.120342,0.0002553,7]
[392444655,1761483050954,-180.120342,0.0002553,7]
[392444656,1761483050963,-180.120334,0.0002553,7]
[392444657,1761483050973,-151.0,0.0002553,7]
[392444658,1761483050983,-151.0,0.0002553,7]
[392444659,1761483050992,-823.475396,0.0002553,7]
[392444660,1761483051001,-823.475396,0.0002553,7]
[392444661,1761483051011,-823.475396,0.0002553,7]
[392444662,1761483051019,-823.47539034,0.0002553,7]
[392444663,1761483051029,-151.0,0.0002553,7]
[392444664,1761483051039,-151.0,0.0002553,7]
[392444665,1761483051048,-151.0,0.0002553,7]
[392444666,1761483051058,-151.0,0.0002553,7]
[392444667,1761483051067,-151.0,0.0002553,7]
[392444668,1761483051077,-151.0,0.0002553,7]
[392444669,1761483051088,-151.0,0.0002553,7]
[392444670,1761483051098,-151.0,0.0002553,7]
[392444671,1761483051107,-151.0,0.0002553,7]
[392444672,1761483051116,-151.0,0.0002553,7]
[392444673,1761483051126,-151.0,0.0002553,7]
[392444674,1761483051135,-151.0,0.0002553,7]
[392444675,1761483051144,-151.0,0.0002553,7]
[392444676,1761483051153,-151.0,0.0002553,2]
[392444677,1761483051163,-151.0,0.0002553,7]
[392444678,1761483051173,-151.0,0.0002553,2]
[392444679,1761483051183,-367.641898,0.0002553,7]
[392444680,1761483051192,-500.0,0.00025531,5]
[392444681,1761483051202,-151.0,0.00025541,7]
[392444682,1761483051211,-151.0,0.00025541,7]
[392444683,1761483051220,-377.71805,0.00025541,7]
[392444684,1761483051230,-377.71805,0.00025541,7]
[392444685,1761483051239,-377.71805,0.00025541,7]
[392444686,1761483051249,-151.0,0.00025541,7]
[392444687,1761483051258,-151.0,0.00025541,7]
[392444688,1761483051268,-377.71805,0.00025541,7]
[392444689,1761483051277,-151.0,0.00025541,7]
[392444690,1761483051286,-151.0,0.00025541,7]
[392444691,1761483051295,-151.0,0.00025541,7]
[392444692,1761483051305,-156.080773,0.00025541,7]
[392444693,1761483051314,-151.0,0.00025541,7]
[392444694,1761483051323,-151.0,0.00025541,7]
[392444695,1761483051332,-151.0,0.00025541,7]
[392444696,1761483051342,-151.0,0.00025541,7]
[392444697,1761483051351,-151.0,0.00025541,7]
[392444698,1761483051360,-151.0,0.0002569,7]
[392444699,1761483051369,-151.0,0.0002569,7]
[392444700,1761483051379,-377.71805,0.0002569,7]
[392444701,1761483051388,-377.71805,0.0002569,7]
[392444702,1761483051398,-377.71805,0.0002569,7]
[392444703,1761483051407,-151.0,0.0002569,7]
[392444704,1761483051416,-160.523286,0.0002569,7]
[392444705,1761483051425,-377.718041,0.0002569,7]
[392444706,1761483051433,-151.0,0.0002569,7]
[392444707,1761483051443,-151.0,0.0002569,7]
[392444708,1761483051451,-151.0,0.0002569,7]
[392444709,1761483051460,-151.0,0.0002569,7]
[392444710,1761483051469,-151.0,0.0002569,7]
[392444711,1761483051478,-151.0,0.0002569,7]
[392444712,1761483051487,-167.257217,0.0002569,7]
[392444713,1761483051496,-151.0,0.0002569,7]
[392444714,1761483051505,-2000.0,0.000257,2]
[392444715,1761483051514,-150.072774,0.000257,2]
[392444716,1761483051522,-1000.0,0.000257,2]
[392444717,1761483051531,-168.0,0.00025733,2]
[392444718,1761483051540,-168.0,0.00025736,2]
[392444719,1761483051549,-151.0,0.00025751,3]
[392444720,1761483051558,-500.0,0.00025805,5]
[392444721,1761483051567,-1500.0,0.00025968,2]
[392444722,1761483051576,-190.92398367,0.0002599,7]
[392444723,1761483051585,-500.0,0.0002599,9]
[392444724,1761483051594,-500.0,0.0002599,9]
[392444725,1761483051603,-3115.97002093,0.00026,2]
[392444726,1761483051612,-300.0,0.00026,2]
[392444727,1761483051621,-300.0,0.00026,2]
[392444728,1761483051630,-300.0,0.00026,2]
[392444729,1761483051639,-300.0,0.00026,2]
[392444730,1761483051648,-250.0,0.00026,7]
[392444731,1761483051657,-300.0,0.00026013,2]
[392444732,1761483051666,-420.0,0.00026013,2]
[392444733,1761483051742,-291.0,0.00026013,2]
[392444734,1761483051757,-221.59779308,0.00026046,16]
[392444735,1761483051766,-221.59779308,0.00026046,16]
[392444736,1761483051775,-168.0,0.00026047,2]
[392444737,1761483051784,-500.0,0.00026078,5]
[392444738,1761483051793,-157.88842757,0.0002612,30]
[392444739,1761483051802,-157.88842757,0.0002612,30]
[392444740,1761483051811,-157.88842757,0.0002612,30]
[392444741,1761483051825,-157.88842757,0.0002612,30]
[392444742,1761483051835,-178.0,0.00026132,2]
[392444743,1761483051844,-160.26658434,0.00026192,19]
[392444744,1761483051853,-168.0,0.00026193,2]
[392444745,1761483051862,-300.0,0.00026228,30]
[392444746,1761483051871,-300.0,0.00026228,30]
[392444747,1761483051880,-1925.92,0.00026256,3]
[392444748,1761483051889,-1788.38,0.00026256,3]
[392444749,1761483051901,-894.18,0.00026256,3]
[392444750,1761483051909,-447.1,0.00026256,3]
[392444751,1761483051918,-8748.80237976,0.00026458,2]
[392444752,1761483051927,-1441.54502371,0.00026516,2]
[392444753,1761483051936,-725.630805,0.00026676,2]
[392444754,1761483051946,-600.0,0.00026703,30]
[392444755,1761483051955,-1650.8,0.0002688,3]
[392444756,1761483051964,-10000.0,0.00027,2]
[392444757,1761483051973,-1118.0,0.00027,2]
[392444758,1761483051982,-166.19834481,0.00027,30]
[392444759,1761483051991,-166.19834481,0.00027,30]
[392444760,1761483052000,-166.19834481,0.00027,30]
[392444761,1761483052010,-166.19834481,0.00027,30]
[392444762,1761483052019,-221.59779308,0.00027098,30]
[392444763,1761483052028,-221.59779308,0.00027098,30]
[392444764,1761483052037,-221.59779308,0.00027098,30]
[392444765,1761483052046,-221.59779308,0.00027098,30]
[392444766,1761483052055,-168.0,0.00027133,2]
[392444767,1761483052064,-168.0,0.00027232,2]
[392444768,1761483052073,-151.0,0.00027342,4]
[392444769,1761483052082,-500.0,0.00027373,2]
[392444770,1761483052091,-500.0,0.00027373,2]
[392444771,1761483052100,-447.77056921,0.00027373,2]
[392444772,1761483052109,-500.0,0.00027373,2]
[392444773,1761483052118,-264.82,0.00027373,2]
[392444774,1761483052126,-500.0,0.00027373,2]
[392444775,1761483052135,-500.0,0.00027373,2]
[392444776,1761483052144,-160.0,0.00027383,2]
[392444777,1761483052153,-198.83945846,0.0002739,2]
[392444778,1761483052162,-500.0,0.00027397,2]
[392444779,1761483052172,-500.0,0.00027397,2]
[392444780,1761483052182,-500.0,0.00027397,2]
[392444781,1761483052192,-500.0,0.00027397,2]
[392444782,1761483052201,-500.0,0.00027397,2]
[392444783,1761483052211,-477.97197514,0.00027397,2]
[392444784,1761483052221,-508.23,0.00027397,2]
[392444785,1761483052230,-500.0,0.00027397,2]
[392444786,1761483052239,-782.87,0.00027397,2]
[392444787,1761483052248,-500.0,0.00027397,2]
[392444788,1761483052258,-1000.0,0.00027397,2]
[392444789,1761483052267,-500.0,0.00027397,2]
[392444790,1761483052276,-500.0,0.00027397,2]
[392444791,1761483052286,-500.0,0.00027397,2]
[392444792,1761483052296,-500.0,0.00027397,2]
[392444793,1761483052307,-503.660346,0.00027397,2]
[392444794,1761483052316,-500.0,0.00027397,2]
[392444795,1761483052336,-500.0,0.00027397,2]
[392444796,1761483052352,-500.0,0.00027397,2]
[392444797,1761483052368,-500.0,0.00027397,2]
[392444798,1761483052387,-500.0,0.00027397,2]
[392444799,1761483052406,-511.53209903,0.00027397,2]
[392444800,1761483052423,-500.0,0.00027397,2]
[392444801,1761483052440,-500.0,0.00027397,2]
[392444802,1761483052458,-500.0,0.00027397,2]
[392444803,1761483052473,-481.20507263,0.00027397,2]
[392444804,1761483052488,-500.0,0.00027397,2]
[392444805,1761483052503,-223.0,0.00027397,2]
[392444806,1761483052518,-500.0,0.00027397,2]
[392444807,1761483052538,-500.0,0.00027397,2]
[392444808,1761483052552,-500.0,0.00027397,2]
[392444809,1761483052567,-500.0,0.00027397,2]
[392444810,1761483052587,-500.0,0.00027397,2]
[392444811,1761483052599,-638.1,0.00027397,2]
[392444812,1761483052615,-482.75699534,0.00027397,2]
[392444813,1761483052626,-506.28566998,0.00027397,2]
[392444814,1761483052639,-595.65583211,0.00027397,2]
[392444815,1761483052653,-500.0,0.00027397,2]
[392444816,1761483052666,-500.0,0.00027397,2]
[392444817,1761483052681,-500.0,0.00027397,2]
[392444818,1761483052696,-500.0,0.00027397,2]
[392444819,1761483052711,-500.0,0.00027397,2]
[392444820,1761483052725,-501.01809364,0.00027397,2]
[392444821,1761483052740,-500.52218492,0.00027397,2]
[392444822,1761483052755,-500.0,0.00027397,2]
[392444823,1761483052770,-500.0,0.00027397,2]
[392444824,1761483052784,-500.0,0.00027397,2]
[392444825,1761483052798,-233.45756075,0.00027397,2]
[392444826,1761483052814,-500.0,0.00027397,2]
[392444827,1761483052830,-500.0,0.00027397,2]
[392444828,1761483052843,-500.0,0.00027397,2]
[392444829,1761483052858,-1000.0,0.00027397,2]
[392444830,1761483052875,-500.0,0.00027397,2]
[392444831,1761483052890,-500.0,0.00027397,2]
[392444832,1761483052903,-490.37693125,0.00027397,2]
[392444833,1761483052918,-500.0,0.00027397,2]
[392444834,1761483052932,-500.0,0.00027397,2]
[392444835,1761483052947,-314.41446661,0.00027397,2]
[392444836,1761483052960,-500.0,0.00027397,2]
[392444837,1761483052977,-775.75,0.00027397,2]
[392444838,1761483052991,-500.0,0.00027397,2]
[392444839,1761483053006,-500.0,0.00027397,2]
[392444840,1761483053019,-500.0,0.00027397,2]
[392444841,1761483053032,-500.0,0.00027397,2]
[392444842,1761483053046,-500.0,0.00027397,2]
[392444843,1761483053060,-1003.4,0.00027397,2]
[392444844,1761483053074,-526.26264538,0.00027397,2]
[392444845,1761483053088,-500.0,0.00027397,2]
[392444846,1761483053102,-535.08584539,0.00027397,2]
[392444847,1761483053116,-500.0,0.00027397,2]
[392444848,1761483053126,-1352.49,0.00027397,2]
[392444849,1761483053136,-500.0,0.00027397,2]
[392444850,1761483053145,-806.92,0.00027397,2]
[392444851,1761483053154,-780.75,0.00027397,2]
[392444852,1761483053164,-500.0,0.00027397,2]
[392444853,1761483053173,-516.77121752,0.00027397,2]
[392444854,1761483053183,-558.9114548,0.00027397,2]
[392444855,1761483053363,-500.3100742,0.00027397,2]
[392444856,1761483053376,-500.0,0.00027397,2]
[392444857,1761483053386,-500.0,0.00027397,2]
[392444858,1761483053395,-1944.12,0.00027397,2]
[392444859,1761483053405,-500.0,0.00027397,2]
[392444860,1761483053415,-543.73054676,0.00027397,2]
[392444861,1761483053424,-2966.75,0.00027397,2]
[392444862,1761483053433,-500.0,0.00027397,2]
[392444863,1761483053442,-1022.71,0.00027397,2]
[392444864,1761483053451,-500.0,0.00027397,2]
[392444865,1761483053460,-914.19,0.00027397,2]
[392444866,1761483053470,-500.0,0.00027397,2]
[392444867,1761483053480,-500.0,0.00027397,2]
[392444868,1761483053488,-500.0,0.00027397,2]
[392444869,1761483053497,-751.87,0.00027397,2]
[392444870,1761483053507,-1088.51,0.00027397,2]
[392444871,1761483053516,-329.09536985,0.00027397,2]
[392444872,1761483053526,-500.0,0.00027397,2]
[392444873,1761483053535,-836.59,0.00027397,2]
[392444874,1761483053544,-500.0,0.00027397,2]
[392444875,1761483053553,-500.0,0.00027397,2]
[392444876,1761483053562,-488.41668024,0.00027397,2]
[392444877,1761483053571,-500.0,0.00027397,2]
[392444878,1761483053580,-500.0,0.00027397,2]
[392444879,1761483053590,-500.0,0.00027397,2]
[392444880,1761483053599,-500.0,0.00027397,2]
[392444881,1761483053609,-1217.52,0.00027397,2]
[392444882,1761483053618,-536.22050171,0.00027397,2]
[392444883,1761483053628,-500.0,0.00027397,2]
[392444884,1761483053636,-500.0,0.00027397,2]
[392444885,1761483053646,-1161.27,0.00027397,2]
[392444886,1761483053655,-500.0,0.00027397,2]
[392444887,1761483053664,-1159.52,0.00027397,2]
[392444888,1761483053673,-903.51,0.00027397,2]
[392444889,1761483053682,-500.0,0.00027397,2]
[392444890,1761483053691,-500.0,0.00027397,2]
[392444891,1761483053701,-500.0,0.00027397,2]
[392444892,1761483053709,-714.35,0.00027397,2]
[392444893,1761483053718,-500.0,0.00027397,2]
[392444894,1761483053727,-500.0,0.00027397,2]
[392444895,1761483053736,-500.0,0.00027397,2]
[392444896,1761483053745,-1024.4,0.00027397,2]
[392444897,1761483053755,-500.0,0.00027397,2]
[392444898,1761483053763,-500.0,0.00027397,2]
[392444899,1761483053773,-518.95167031,0.00027397,2]
[392444900,1761483053782,-500.0,0.00027397,2]
[392444901,1761483053791,-480.56085877,0.00027397,2]
[392444902,1761483053800,-500.0,0.00027397,2]
[392444903,1761483053809,-487.6143573,0.00027397,2]
[392444904,1761483053822,-624.05,0.00027397,2]
[392444905,1761483053832,-283.51004135,0.00027397,2]
[392444906,1761483053842,-500.0,0.00027397,2]
[392444907,1761483053851,-500.0,0.00027397,2]
[392444908,1761483053861,-500.0,0.00027397,2]
[392444909,1761483053871,-500.0,0.00027397,2]
[392444910,1761483053881,-500.0,0.00027397,2]
[392444911,1761483053890,-500.0,0.00027397,2]
[392444912,1761483053902,-500.0,0.00027397,2]
[392444913,1761483053911,-500.0,0.00027397,2]
[392444914,1761483053920,-720.79,0.00027397,2]
[392444915,1761483053931,-500.0,0.00027397,2]
[392444916,1761483053940,-500.0,0.00027397,2]
[392444917,1761483053950,-500.0,0.00027397,2]
[392444918,1761483053959,-1070.12,0.00027397,2]
[392444919,1761483053969,-1133.45,0.00027397,2]
[392444920,1761483053979,-1393.22,0.00027397,2]
[392444921,1761483053989,-631.26469853,0.00027397,2]
[392444922,1761483053998,-500.0,0.00027397,2]
[392444923,1761483054007,-791.3,0.00027397,2]
[392444924,1761483054016,-500.0,0.00027397,2]
[392444925,1761483054027,-1144.15,0.00027397,2]
[392444926,1761483054036,-500.0,0.00027397,2]
[392444927,1761483054045,-500.0,0.00027397,2]
[392444928,1761483054055,-579.37,0.00027397,2]
[392444929,1761483054064,-500.0,0.00027397,2]
[392444930,1761483054073,-874.52,0.00027397,2]
[392444931,1761483054084,-734.95,0.00027397,2]
[392444932,1761483054096,-500.0,0.00027397,2]
[392444933,1761483054106,-506.47475152,0.00027397,2]
[392444934,1761483054115,-500.0,0.00027397,2]
[392444935,1761483054125,-500.0,0.00027397,2]
[392444936,1761483054135,-500.0,0.00027397,2]
[392444937,1761483054144,-500.0,0.00027397,2]
[392444938,1761483054154,-519.96,0.00027397,2]
[392444939,1761483054164,-500.0,0.00027397,2]
[392444940,1761483054174,-500.0,0.00027397,2]
[392444941,1761483054184,-500.0,0.00027397,2]
[392444942,1761483054195,-500.0,0.00027397,2]
[392444943,1761483054204,-500.0,0.00027397,2]
[392444944,1761483054215,-500.0,0.00027397,2]
[392444945,1761483054225,-165.75476061,0.00027397,2]
[392444946,1761483054234,-500.0,0.00027397,2]
[392444947,1761483054244,-500.0,0.00027397,2]
[392444948,1761483054253,-1066.12,0.00027397,2]
[392444949,1761483054262,-717.23,0.00027397,2]
[392444950,1761483054272,-775.42,0.00027397,2]
[392444951,1761483054282,-501.30878145,0.00027397,2]
[392444952,1761483054291,-500.0,0.00027397,2]
[392444953,1761483054301,-506.25564702,0.00027397,2]
[392444954,1761483054310,-500.0,0.00027397,2]
[392444955,1761483054319,-500.0,0.00027397,2]
[392444956,1761483054328,-500.0,0.00027397,2]
[392444957,1761483054340,-572.89,0.00027397,2]
[392444958,1761483054350,-500.0,0.00027397,2]
[392444959,1761483054359,-162.48642541,0.00027397,2]
[392444960,1761483054368,-616.45,0.00027397,2]
[392444961,1761483054378,-300.98465096,0.00027397,2]
[392444962,1761483054388,-500.0,0.00027397,2]
[392444963,1761483054397,-500.0,0.00027397,2]
[392444964,1761483054406,-500.0,0.00027397,2]
[392444965,1761483054416,-1098.13,0.00027397,2]
[392444966,1761483054425,-1501.2,0.00027397,2]
[392444967,1761483054436,-500.0,0.00027397,2]
[392444968,1761483054445,-500.0,0.00027397,2]
[392444969,1761483054454,-500.0,0.00027397,2]
[392444970,1761483054464,-500.0,0.00027397,2]
[392444971,1761483054473,-531.84755212,0.00027397,2]
[392444972,1761483054483,-500.0,0.00027397,2]
[392444973,1761483054492,-500.0,0.00027397,2]
[392444974,1761483054501,-500.0,0.00027397,2]
[392444975,1761483054510,-1004.18,0.00027397,2]
[392444976,1761483054519,-1010.82,0.00027397,2]
[392444977,1761483054528,-1538.37,0.00027397,2]
[392444978,1761483054537,-327.00061112,0.00027397,2]
[392444979,1761483054547,-500.0,0.00027397,2]
[392444980,1761483054555,-500.0,0.00027397,2]
[392444981,1761483054565,-747.75,0.00027397,2]
[392444982,1761483054575,-500.0,0.00027397,2]
[392444983,1761483054585,-580.0,0.00027397,2]
[392444984,1761483054595,-1709.16,0.00027397,2]
[392444985,1761483054604,-1047.19,0.00027397,2]
[392444986,1761483054613,-500.0,0.00027397,2]
[392444987,1761483054623,-630.39013649,0.00027397,2]
[392444988,1761483054631,-2054.32,0.00027397,2]
[392444989,1761483054641,-799.25,0.00027397,2]
[392444990,1761483054650,-500.0,0.00027397,2]
[392444991,1761483054659,-519.79131641,0.00027397,2]
[392444992,1761483054668,-500.0,0.00027397,2]
[392444993,1761483054678,-809.51,0.00027397,2]
[392444994,1761483054687,-500.0,0.00027397,2]
[392444995,1761483054697,-494.49004189,0.00027397,2]
[392444996,1761483054706,-540.86,0.00027397,2]
[392444997,1761483054715,-575.17,0.00027397,2]
[392444998,1761483054724,-1038.09,0.00027397,2]
[392444999,1761483054733,-500.0,0.00027397,2]
[392445000,1761483054742,-500.0,0.00027397,2]
[392445001,1761483054751,-500.0,0.00027397,2]
[392445002,1761483054760,-500.0,0.00027397,2]
[392445003,1761483054769,-485.06262871,0.00027397,2]
[392445004,1761483054778,-928.31,0.00027397,2]
[392445005,1761483054787,-1290.91,0.00027397,2]
[392445006,1761483054796,-500.0,0.00027397,2]
[392445007,1761483054805,-500.0,0.00027397,2]
[392445008,1761483054816,-500.0,0.00027397,2]
[392445009,1761483054828,-500.0,0.00027397,2]
[392445010,1761483054839,-775.46,0.00027397,2]
[392445011,1761483054848,-500.0,0.00027397,2]
[392445012,1761483054858,-1732.98,0.00027397,2]
[392445013,1761483054867,-500.0,0.00027397,2]
[392445014,1761483054877,-500.0,0.00027397,2]
[392445015,1761483054886,-1010.2,0.00027397,2]
[392445016,1761483054895,-500.0,0.00027397,2]
[392445017,1761483054904,-500.0,0.00027397,2]
[392445018,1761483054913,-571.86850352,0.00027397,2]
[392445019,1761483054922,-602.62,0.00027397,2]
[392445020,1761483054931,-500.0,0.00027397,2]
[392445021,1761483054942,-552.95,0.00027397,2]
[392445022,1761483054951,-500.0,0.00027397,2]
[392445023,1761483054960,-523.61,0.00027397,2]
[392445024,1761483054970,-605.47,0.00027397,2]
[392445025,1761483054979,-427.54863188,0.00027397,2]
[392445026,1761483054987,-533.18793879,0.00027397,2]
[392445027,1761483054998,-151.0,0.00027397,2]
[392445028,1761483055006,-912.43,0.00027397,2]
[392445029,1761483055015,-824.14,0.00027397,2]
[392445030,1761483055025,-754.82,0.00027397,2]
[392445031,1761483055034,-500.0,0.00027397,2]
[392445032,1761483055044,-721.92,0.00027397,2]
[392445033,1761483055053,-194.82963171,0.00027397,2]
[392445034,1761483055062,-540.2999383,0.00027397,2]
[392445035,1761483055071,-500.0,0.00027397,2]
[392445036,1761483055080,-1168.26,0.00027397,2]
[392445037,1761483055090,-500.0,0.00027397,2]
[392445038,1761483055099,-536.64,0.00027397,2]
[392445039,1761483055108,-500.0,0.00027397,2]
[392445040,1761483055117,-938.7,0.00027397,2]
[392445041,1761483055127,-501.79985571,0.00027397,2]
[392445042,1761483055136,-1818.91,0.00027397,2]
[392445043,1761483055145,-500.0,0.00027397,2]
[392445044,1761483055154,-164.22952978,0.00027397,2]
[392445045,1761483055163,-500.0,0.00027397,2]
[392445046,1761483055172,-500.0,0.00027397,2]
[392445047,1761483055182,-721.16,0.00027397,2]
[392445048,1761483055191,-500.0,0.00027397,2]
[392445049,1761483055201,-500.0,0.00027397,2]
[392445050,1761483055210,-500.0,0.00027397,2]
[392445051,1761483055219,-644.18,0.00027397,2]
[392445052,1761483055228,-1466.62,0.00027397,2]
[392445053,1761483055237,-685.25,0.00027397,2]
[392445054,1761483055246,-500.0,0.00027397,2]
[392445055,1761483055256,-520.89740167,0.00027397,2]
[392445056,1761483055265,-1247.86,0.00027397,2]
[392445057,1761483055274,-1035.78,0.00027397,2]
[392445058,1761483055283,-913.81,0.00027397,2]
[392445059,1761483055292,-500.0,0.00027397,2]
[392445060,1761483055301,-500.0,0.00027397,2]
[392445061,1761483055311,-500.0,0.00027397,2]
[392445062,1761483055320,-500.0,0.00027397,2]
[392445063,1761483055329,-2314.16,0.00027397,2]
[392445064,1761483055339,-559.76,0.00027397,2]
[392445065,1761483055348,-500.0,0.00027397,2]
[392445066,1761483055357,-500.0,0.00027397,2]
[392445067,1761483055366,-500.0,0.00027397,2]
[392445068,1761483055375,-1095.8,0.00027397,2]
[392445069,1761483055384,-1217.84,0.00027397,2]
[392445070,1761483055394,-628.78,0.00027397,2]
[392445071,1761483055403,-311.41936244,0.00027397,2]
[392445072,1761483055411,-1178.12,0.00027397,2]
[392445073,1761483055512,-500.0,0.00027397,2]
[392445074,1761483055521,-500.0,0.00027397,2]
[392445075,1761483055530,-500.0,0.00027397,2]
[392445076,1761483055540,-2150.15,0.00027397,2]
[392445077,1761483055549,-1693.8,0.00027397,2]
[392445078,1761483055558,-500.0,0.00027397,2]
[392445079,1761483055567,-837.08,0.00027397,2]
[392445080,1761483055576,-500.0,0.00027397,2]
[392445081,1761483055585,-895.81,0.00027397,2]
[392445082,1761483055594,-500.0,0.00027397,2]
[392445083,1761483055603,-500.0,0.00027397,2]
[392445084,1761483055612,-573.08,0.00027397,2]
[392445085,1761483055621,-494.66151711,0.00027397,2]
[392445086,1761483055630,-1326.99,0.00027397,2]
[392445087,1761483055639,-566.6,0.00027397,2]
[392445088,1761483055648,-500.0,0.00027397,2]
[392445089,1761483055657,-500.41327849,0.00027397,2]
[392445090,1761483055666,-890.92404315,0.00027397,2]
[392445091,1761483055675,-500.65912524,0.00027397,2]
[392445092,1761483055684,-637.1,0.00027397,2]
[392445093,1761483055693,-1066.38,0.00027397,2]
[392445094,1761483055702,-1861.51,0.00027397,2]
[392445095,1761483055711,-500.0,0.00027397,2]
[392445096,1761483055720,-522.77196566,0.00027397,2]
[392445097,1761483055728,-500.0,0.00027397,2]
[392445098,1761483055737,-831.35,0.00027397,2]
[392445099,1761483055746,-500.0,0.00027397,2]
[392445100,1761483055755,-500.0,0.00027397,2]
[392445101,1761483055764,-2974.0,0.00027397,2]
[392445102,1761483055773,-1192.19,0.00027397,2]
[392445103,1761483055782,-500.0,0.00027397,2]
[392445104,1761483055791,-500.0,0.00027397,2]
[392445105,1761483055801,-1106.48,0.00027397,2]
[392445106,1761483055810,-500.0,0.00027397,2]
[392445107,1761483055823,-523.15496873,0.00027397,2]
[392445108,1761483055832,-500.0,0.00027397,2]
[392445109,1761483055843,-1376.09,0.00027397,2]